Workbook

Sheet Miehet Yli 75
B1: Kansalliset seniorit SM
B2: Miehet yli 75 v.
B4: Nimi | C4: Yhdistys | D4: Synt.vuosi | E4: Tas/sarja | F4: Tulos
A5: 1. | B5: Mäkelä Kauno | C5: Nokian kans seniorit | D5: 1943 | E5: 20 | F5: 836
A6: 2. | B6: Sahramies Tapio | C6: Kotkan kans seniorit | D6: 1943 | E6: 20 | F6: 798
A7: 3. | B7: Aarikka Matti | C7: Nakkilan kans.seniorit | D7: 1947 | E7: 16 | F7: 793
A8: 4. | B8: Räikkönen Jaakko | C8: Rauman kans.seniorit | D8: 1948 | E8: 15 | F8: 759
A9: 5. | B9: Koskinen Jouko | C9: Hyvinkään kans.seniorit | D9: 1940 | E9: 23 | F9: 738
A10: 6. | B10: Halme Vesa | C10: Kuhmoisten kans sen. | D10: 1947 | E10: 16 | F10: 712
A11: 7. | B11: Siekkinen Reijo | C11: Keski-Espoon seniorit | D11: 1947 | E11: 16 | F11: 710
A12: 8. | B12: Mustonen Leo | C12: Joensuun kans. seniorit | D12: 1940 | E12: 23 | F12: 707
A13: 9. | B13: Virtanen Raimo | C13: Uudenkaupungin kans sen | D13: 1946 | E13: 17 | F13: 707
A14: 10. | B14: Rosengren Kari | C14: Nakkilan kans.seniorit | D14: 1948 | E14: 15 | F14: 704
A15: 11. | B15: Nykänen Martti | C15: Akaan seniorit | D15: 1937 | E15: 26 | F15: 696
A16: 12. | B16: Anttila Jaakko | C16: Raision Seniorit | D16: 1942 | E16: 21 | F16: 695
A17: 13. | B17: Vattulainen Antero | C17: Heinolan seniorit | D17: 1948 | E17: 15 | F17: 693
A18: 14. | B18: Saukko Mauri | C18: Järvi-Pohjanmaan seniorit | D18: 1944 | E18: 19 | F18: 692
A19: 15. | B19: Kivi Kai | C19: Keski-Espoon seniorit | D19: 1940 | E19: 23 | F19: 690
A20: 16. | B20: Sorvali Antero | C20: Lammin Seudun kans sen. | D20: 1943 | E20: 20 | F20: 675
A21: 17. | B21: Viman Kari | C21: Salon kans seniorit | D21: 1944 | E21: 19 | F21: 674
A22: 18. | B22: Varjopuro Arto | C22: Hämeenlinnan kans seniorit | D22: 1943 | E22: 20 | F22: 669
A23: 19. | B23: Virtanen Jaakko | C23: Raision Seniorit | D23: 1948 | E23: 15 | F23: 662
A24: 20. | B24: Haapala Aimo | C24: Kuortaneen kans.seniorit | D24: 1943 | E24: 20 | F24: 662
A25: 21. | B25: Virtanen Juhani | C25: Hämeenlinnan kans seniorit | D25: 1943 | E25: 20 | F25: 656
A26: 22. | B26: Hellemaa Reino | C26: Hämeenlinnan kans seniorit | D26: 1941 | E26: 22 | F26: 654
A27: 23. | B27: Vaittinen Eino | C27: Lammin Seudun kans sen. | D27: 1935 | E27: 28 | F27: 649
A28: 24. | B28: Kartano Antti | C28: Lammin Seudun kans sen. | D28: 1948 | E28: 15 | F28: 649
A29: 25. | B29: Keurulainen Pentti | C29: Keski-Espoon seniorit | D29: 1947 | E29: 16 | F29: 648
A30: 26. | B30: Saarinen Juhani | C30: Tamperen kans sen | D30: 1947 | E30: 16 | F30: 646
A31: 27. | B31: Suonperä Vesa | C31: Hyvinkään kans.seniorit | D31: 1934 | E31: 29 | F31: 643
A32: 28. | B32: Uutela Teuvo | C32: Keski-Espoon seniorit | D32: 1948 | E32: 15 | F32: 637
A33: 29. | B33: Kauppinen Kari | C33: Heinolan seniorit | D33: 1944 | E33: 19 | F33: 635
A34: 30. | B34: Korkia-aho Esko | C34: Lammin Seudun kans sen. | D34: 1934 | E34: 29 | F34: 619
A35: 31. | B35: Kangas Teuvo | C35: Järvi-Pohjanmaan seniorit | D35: 1944 | E35: 19 | F35: 611
A36: 32. | B36: Munne Mauno | C36: Lammin Seudun kans sen. | D36: 1938 | E36: 25 | F36: 607
A37: 33. | B37: Sihvo Tapio | C37: Raision Seniorit | D37: 1937 | E37: 26 | F37: 604
A38: 34. | B38: Wallin Kimmo | C38: Hämeenlinnan kans seniorit | D38: 1948 | E38: 16 | F38: 602
A39: 35. | B39: Iitti Jorma | C39: Raision Seniorit | D39: 1939 | E39: 24 | F39: 598
A40: 36. | B40: Mäkelä Seppo | C40: Salon kans seniorit | D40: 1945 | E40: 18 | F40: 585
A41: 37. | B41: Hirviniemi Pauli | C41: Lammin Seudun kans sen. | D41: 1947 | E41: 16 | F41: 585
A42: 38. | B42: Hakorinta Arto | C42: Kuortaneen kans.seniorit | D42: 1931 | E42: 32 | F42: 578
A43: 39. | B43: Malmi Markku | C43: Keski-Espoon seniorit | D43: 1946 | E43: 17 | F43: 565
A44: 40. | B44: Leino Kari | C44: Heinolan seniorit | D44: 1940 | E44: 23 | F44: 545
A45: 41. | B45: Messala Jaakko | C45: Keski-Espoon seniorit | D45: 1944 | E45: 19 | F45: 535
A46: 42. | B46: Guimaraes Fernando | C46: Keski-Espoon seniorit | D46: 1937 | E46: 26 | F46: 529
A47: 43. | B47: Markkanen Kari | C47: Heinolan seniorit | D47: 1948 | E47: 15 | F47: 504
A48: 44. | B48: Tuomenoja Markku | C48: Hämeenlinnan kans seniorit | D48: 1947 | E48: 16 | F48: 482
A49: 45. | B49: Kartano Simo | C49: Rauman kans.seniorit | D49: 1942 | E49: 21

Sheet Miehet Alle 75
B1: Miehet alle 75 v.
B3: Nimi | C3: Yhdistys | F3: Synt.vuosi | G3: Tas/sarja | H3: Tulos
A4: 1. | B4: Pyy Markku | C4: Järvenpään kans.seniort | F4: 1950 | G4: 13 | H4: 751
A5: 2. | B5: Romppanen Lauri | C5: Hyvinkään kans.seniorit | F5: 1954 | G5: 9 | H5: 729
A6: 3. | B6: Ikkala Matti | C6: Saarijärven kans sen | F6: 1951 | G6: 12 | H6: 707
A7: 4. | B7: Rajala Raimo | C7: Järvi-Pohjanmaan seniorit | F7: 1950 | G7: 13 | H7: 694
A8: 5. | B8: Koskimäki Timo | C8: Järvenpään kans.seniort | F8: 1960 | G8: 3 | H8: 691
A9: 6. | B9: Selkee Seppo | C9: Järvi-Pohjanmaan seniorit | F9: 1949 | G9: 14 | H9: 678
A10: 7. | B10: Lehtonen Juha-Pekka | C10: Nokian kans seniorit | F10: 1952 | G10: 11 | H10: 667
A11: 8. | B11: Leppäaho Raimo | C11: Järvi-Pohjanmaan seniorit | F11: 1949 | G11: 14 | H11: 654
A12: 9. | B12: Pöyhtäri Eero | C12: Lammin Seudun kans sen. | F12: 1950 | G12: 13 | H12: 649
A13: 10. | B13: Linden Jaakko | C13: Hämeenlinnan kans seniorit | F13: 1953 | G13: 10 | H13: 626
A14: 11. | B14: Rauvola Antti | C14: Joensuun kans. seniorit | F14: 1956 | G14: 7 | H14: 624
A15: 12. | B15: Juoperi Seppo | C15: Järvi-Pohjanmaan seniorit | F15: 1950 | G15: 13 | H15: 610
A16: 13. | B16: Valtamo Unto | C16: Salon kans seniorit | F16: 1950 | G16: 13 | H16: 571
A17: 14. | B17: Laakso Markku | C17: Pälkäneen seniorit | F17: 1950 | G17: 13 | H17: 564
A18: 15. | B18: Kekki Jorma | C18: Tampereen kans. Seniorit | F18: 1956 | G18: 7 | H18: 553
A19: 16. | B19: Yli-Olli Pentti | C19: Järvi-Pohjanmaan seniorit | F19: 1955 | G19: 8 | H19: 553
A20: 17. | B20: Toikka Kalevi | C20: Pälkäneen seniorit | F20: 1949 | G20: 14 | H20: 538
A21: 18. | B21: Kauttu Harri | C21: Pälkäneen seniorit | F21: 1952 | G21: 11 | H21: 537
A22: 19. | B22: Laaksonen Klaus | C22: Raision Seniorit | F22: 1951 | G22: 12 | H22: 457
A23: 20. | B23: Kartano Jaakko | C23: Lammin Seudun kans sen. | F23: 1951 | G23: 12

Sheet Naiset
B2: Kansalliset seniorit SM
B4: Naiset yli 75 v.
B5: Nimi | C5: Yhdistys | F5: Synt.vuosi | G5: Tas/sarja | H5: Tulos
A6: 1. | B6: Flytström Marja | C6: Lammin Seudun kans.seniorit | F6: 1944 | G6: 19 | H6: 668
A7: 2. | B7: Hakala Anneli | C7: Lammin Seudun kans.seniorit | F7: 1941 | G7: 22 | H7: 663
A8: 3. | B8: Ilva Raija | C8: Hämeenlinnan kans. Seniorit | F8: 1942 | G8: 21 | H8: 642
A9: 4. | B9: Kanerva Sirpa | C9: Lammin Seudun kans.seniorit | F9: 1940 | G9: 23 | H9: 600
A10: 5. | B10: Mäkiniemi Ulla | C10: Hämeenlinnan kans. Seniorit | F10: 1946 | G10: 17 | H10: 591
A11: 6. | B11: Vaaralahti Taimi | C11: Hyvinkään kans.seniorit | F11: 1940 | G11: 23 | H11: 566
A12: 7. | B12: Raatikainen Seija | C12: Hämeenlinnan kans. Seniorit | F12: 1948 | G12: 15 | H12: 554
A13: 8. | B13: Saarenpää Sirpa | C13: Nokian seniorit | F13: 1948 | G13: 15 | H13: 542
A14: 9. | B14: Ahola Aila | C14: Keski-Espoon seniorit | F14: 1939 | G14: 24 | H14: 501
A15: 10. | B15: Kjellman Tuula | C15: Keski-Espoon seniorit | F15: 1947 | G15: 16 | H15: 500
A16: 11. | B16: Eskelinen Airi | C16: Keski-Espoon seniorit | F16: 1948 | G16: 15 | H16: 454
B18: Naiset Alle 75v.
B19: Nimi | C19: Yhdistys | F19: Synt.vuosi | G19: Tas/Sarja | H19: Tulos
A20: 1. | B20: Nio-Halme Raija | C20: Kuhmoisten kans sen. | F20: 1952 | G20: 11 | H20: 638
A21: 2. | B21: Romppanen Lea | C21: Hyvinkään kans. Seniorit | F21: 1953 | G21: 10 | H21: 618
A22: 3. | B22: Mäkinen Anne | C22: Hämeenlinnan kans. Seniorit | F22: 1957 | G22: 6 | H22: 603
A23: 4. | B23: Vainio Tuula | C23: Rauman kans seniorit | F23: 1951 | G23: 12 | H23: 599
A24: 5. | B24: Järvinen Marita | C24: Pälkäneen kans. Seniorit ry | F24: 1950 | G24: 13 | H24: 575
A25: 6. | B25: Laurila Liisa | C25: Hämeenlinnan kans. Seniorit | F25: 1955 | G25: 8 | H25: 564
A26: 7. | B26: Sorvali Pirjo | C26: Lammin Seudun kans.seniorit | F26: 1950 | G26: 13 | H26: 540
A27: 8. | B27: Miclin Tiina | C27: Salon kans seniorit | F27: 1956 | G27: 7 | H27: 514
A28: 9. | B28: Kivinen Irene | C28: Hämeenlinnan kans. Seniorit | F28: 1955 | G28: 8 | H28: 499
A29: 10. | B29: Lassila Soile | C29: Lammin Seudun kans.seniorit | F29: 1949 | G29: 14 | H29: 473
A30: 11. | B30: Pöyhtäri Eliisa | C30: Lammin Seudun kans.seniorit | F30: 1951 | G30: 12 | H30: 440
A31: 12. | B31: Kartano Ulla | C31: Lammin Seudun kans.seniorit | F31: 1950 | G31: 13

Sheet 2x4
B2: PARIKILPAILU 2 x 4 SARJAA
D3: yht.
A4: 1 | B4: Kangas Teuvo | C4: 611 | D4: =C4+C5 -> 1221 | E4: Järvi-Pohjanmaan seniorit | F4: Su klo 13.30
B5: Juoperi Seppo | C5: 610 | E5: - ” - | F5: - ” -
A7: 2 | B7: Haapala Aimo | C7: 662 | D7: =C7+C8 -> 1240 | E7: Kuortaneen kansalliset seniorit | F7: Su klo 13.30
B8: Hakorinta Arto | C8: 578 | E8: - ” - | F8: - ” -
A10: 3 | B10: Suonperä Vesa | C10: 643 | D10: =C10+C11 -> 1372 | E10: Hyvinkään kans.seniorit | F10: La klo 12.00
B11: Romppanen Lauri | C11: 729 | E11: - ” - | F11: - ” -
A13: 4 | B13: Vaaralahti Taimi | C13: 566 | D13: =C13+C14 -> 1184 | E13: Hyvinkään kans.seniorit | F13: - ” -
B14: Romppanen Lea | C14: 618 | E14: - ” - | F14: - ” -
A16: 5 | B16: Virtanen Jaakko | C16: 662 | D16: =C16+C17 -> 1119 | E16: Raision Seniorit | F16: La klo 13.30
B17: Laaksonen Klaus | C17: 457 | E17: - ” - | F17: - ” -
A19: 6 | B19: Iitti Jorma | C19: 585 | D19: =C19+C20 -> 1280 | E19: - ” - | F19: - ” -
B20: Anttila Jaakko | C20: 695 | E20: - ” - | F20: - ” -
A22: 7 | B22: Vainio Tuula | C22: 599 | D22: =C22+C23 -> 1358 | E22: Rauman kans.seniorit | F22: La klo 12.00
B23: Räikkönen Jaakko | C23: 759 | E23: - ” - | F23: - ” -
A25: 8 | B25: Saarenpää Sirpa | C25: 542 | D25: =C25+C26 -> 1209 | E25: Nokian seniorit | F25: La klo 12.00
B26: Lehtonen Juha-Pekka | C26: 667 | E26: - ” - | F26: Su klo 12.00
A28: 9 | B28: Nio-Halme Raija | C28: 638 | D28: =C28+C29 -> 1350 | E28: Kuhmoisten kans.sen | F28: Su klo 13.30
B29: Halme Vesa | C29: 712 | E29: - ” - | F29: - ” -
A31: 10 | B31: Rosengren Kari | C31: 704 | D31: =C31+C32 -> 1497 | E31: Nakkilan kans.seniorit | F31: Su klo 12.00
B32: Aarikka Matti | C32: 793 | E32: - ” - | F32: - ” -
A34: 11 | B34: Pyy Markku | C34: 751 | D34: =C34+C35 -> 1442 | E34: Järvenpään kans. Seniorit | F34: La klo 12.00
B35: Koskimäki Timo | C35: 691 | E35: - ” - | F35: - ” -
A37: 12 | B37: Micklin Tiina | C37: 514 | D37: =C37+C38 -> 1085 | E37: Salon kans.seniorit | F37: La klo 13.30
B38: Valtamo Unto | C38: 571 | E38: - ” - | F38: - ” -
A40: 13 | B40: Viman Kari | C40: 674 | D40: =C40+C41 -> 1259 | E40: - ” . | F40: - ” -
B41: Mäkelä Seppo | C41: 585 | E41: - ” - | F41: - ” -
A43: 14 | B43: Lassila Soile | C43: 473 | D43: =C43+C44 -> 913 | E43: Lammin Seud. Kans.sen. | F43: Su klo 13.30
B44: Pöyhtäri Eliisa | C44: 440 | E44: - ” - | F44: - ” -
A46: 15 | B46: Sorvali Pirjo | C46: 540 | D46: =C46+C47 -> 540 | E46: - ” - | F46: - ” -
B47: Kartano Ulla | E47: - ” - | F47: - ” -
A49: 16 | B49: Hirviniemi Pauli | C49: 585 | D49: =C49+C50 -> 1185 | E49: - ” - | F49: - ” -
B50: Kanerva Sirpa | C50: 600 | E50: - ” - | F50: - ” -
A52: 17 | B52: Flytström Marja | C52: 668 | D52: =C52+C53 -> 1317 | E52: - ” - | F52: - ” -
B53: Pöyhtäri Eero | C53: 649 | E53: - ” - | F53: - ” -
A55: 18 | B55: Korkia-aho Esko | C55: 619 | D55: =C55+C56 -> 1268 | E55: - ” - | F55: - ” -
B56: Vaittinen Eino | C56: 649 | E56: - ” - | F56: - ” -
A58: 19 | B58: Laurila Liisa | C58: 564 | D58: =C58+C59 -> 1167 | E58: Hämeenlinnan kans.seniorit | F58: Su klo 12.00
B59: Mäkinen Anne | C59: 603 | E59: - ” - | F59: - ” -
A61: 20 | B61: Ilva Raija | C61: 642 | D61: =C61+C62 -> 1196 | E61: - ” - | F61: - ” -
B62: Raatikainen Seija | C62: 554 | E62: - ” - | F62: - ” -
A64: 21 | B64: Tuomenoja Markku | C64: 482 | D64: =C64+C65 -> 1084 | E64: - ” - | F64: - ” -
B65: Wallin Kimmo | C65: 602 | E65: - ” - | F65: - ” -
A67: 22 | B67: Kivinen Irene | C67: 499 | D67: =C67+C68 -> 1093 | E67: - ” - | F67: - ” -
B68: Mäkiniemi Ulla | C68: 594 | E68: - ” - | F68: - ” -
A70: 23 | B70: Mustonen Leo | C70: 707 | D70: =C70+C71 -> 1331 | E70: Joensuun kans.seniorit | F70: Su klo 13.30
B71: Rauvola Antti | C71: 624 | E71: - ” - | F71: - ” -
A73: 24 | B73: Kekki Jorma | C73: 553 | D73: =C73+C74 -> 1199 | E73: Tampereen kansalliset seniorit | F73: La klo 13.30
B74: Saarinen Juhani | C74: 646 | E74: - ” - | F74: Su klo 13.30
A76: 25 | B76: Ahola Aila | C76: 501 | D76: =C76+C77 -> 955 | E76: Keski-Espoon seniorit ry | F76: La klo 13.30
B77: Askelinen Airi | C77: 454 | E77: - ” - | F77: - ” -
A79: 26 | B79: Malmi Markku | C79: 565 | D79: =C79+C80 -> 1065 | E79: - ” - | F79: - ” -
B80: Kjellman Tuula | C80: 500 | E80: - ” - | F80: - ” -
A82: 27 | B82: Uutela Teuvo | C82: 637 | D82: =C82+C83 -> 1285 | E82: - ” - | F82: - ” -
B83: Keurulainen Pentti | C83: 648 | E83: - ” - | F83: - ” -
A85: 28 | B85: Siekkinen Reijo | C85: 710 | D85: =C85+C86 -> 1400 | E85: - ” - | F85: - ” -
B86: Kivi Kaj | C86: 690 | E86: - ” - | F86: - ” -
A88: 29 | B88: Guimaraes Fernando | C88: 529 | D88: =C88+C89 -> 1064 | E88: - ” - | F88: - ” -
B89: Messala Jaakko | C89: 535 | E89: - ” - | F89: - ” -
A91: 30 | B91: Yli-Olli Pentti | C91: 553 | D91: =C91+C92 -> 1163 | E91: Järvi-Pohjanmaan seniorit
B92: Juoperi Seppo | C92: 610

Sheet 4x4
B2: JOUKKUEKILPAILU 4 x 4 SARJAA
A4: 1 | B4: Järvi-Pohjanmaan kansalliset seniorit | E4: =D5+D6+D7+D8 -> 2718
B5: Selkee Seppo | D5: 678
B6: Rajala Raimo | D6: 694
B7: Leppäaho Raimo | D7: 654
B8: Saukko Mauri | D8: 692
A10: 2 | B10: Hämeenlinnan kans.seniorit | E10: =D11+D12+D13+D14 -> 2605
B11: Varjopuro Arto | D11: 669
B12: Virtanen Juhani | D12: 656
B13: Linden Jaakko | D13: 626
B14: Hellemaa Reino | D14: 654
A16: 3 | B16: Lammin Seudun kansalliset seniorit | E16: =D17+D18+D19+D20 -> 2594
B17: Sorvali Antero | D17: 675
B18: Kartano Antti | D18: 649
B19: Hakala Anneli | D19: 663
B20: Munne Mauno | D20: 607
A22: 4 | B22: Heinolan kans seniorit | E22: =D23+D24+D25+D26 -> 2377
B23: Leino Kari | D23: 545
B24: Kauppinen Kari | D24: 635
B25: Markkanen Kari | D25: 504
B26: Vattulainen Antero | D26: 693
A29: 5 | B29: Pälkäneen kans seniorit | E29: =D30+D31+D32+D33 -> 2214
B30: Toikka Kalevi | D30: 538
B31: Järvinen Marita | D31: 575
B32: Kauttu Harri | D32: 537
B33: Laakso Markku | D33: 564

Sheet 2x4 lopputulokset
B2: PARIKILPAILU 2 x 4 SARJAA
A4: 1. | B4: Nakkilan kans. Seniorit | D4: 1497
B5: Rosengren Kari | C5: 704
B6: Aarikka Matti | C6: 793
A8: 2. | B8: Järvenpään kans. seniorit | D8: 1442
B9: Koskimäki Timo | C9: 691
B10: Pyy Markku | C10: 751
A12: 3. | B12: Keski-Espoon seniorit ry | D12: 1400
B13: Siekkinen Reijo | C13: 710
B14: Kivi Kaj | C14: 690
A16: 4. | B16: Hyvinkään kans. seniorit | D16: 1372
B17: Suonperä Vesa | C17: 643
B18: Romppanen Lauri | C18: 729
A20: 5. | B20: Rauman kans. seniorit | D20: 1358
B21: Vainio Tuula | C21: 599
B22: Räikkönen Jaakko | C22: 759
A24: 6. | B24: Kuhmoisten kans. Seniorit | D24: 1350
B25: Nio-Halme Raija | C25: 638
B26: Halme Vesa | C26: 712 | I26: Sijalla 17 pitäisi olla:
I27: Ilva Raija 642
A28: 7. | B28: Joensuun kans. Seniorit | D28: 1331 | I28: Raatikainen Seija 554
B29: Mustonen Leo | C29: 707 | I29: Yhteensä 1196
B30: Rauvola Antti | C30: 624
A32: 8. | B32: Lammin seudun kans. Seniorit | D32: 1317
B33: Flytström Marja | C33: 668
B34: Pöyhtäri Eero | C34: 649
A36: 9. | B36: Keski-Espoon seniorit | D36: 1285
B37: Uutela Teuvo | C37: 637
B38: Keurulainen Pentti | C38: 648
A40: 10. | B40: Raision seniorit | D40: 1280
B41: Iitti Jorma | C41: 585
B42: Anttila Jaakko | C42: 695
A44: 11. | B44: Lammin seudun kans. Seniorit | D44: 1268
B45: Korkia-Aho Esko | C45: 619
B46: Vaittinen Eino | C46: 649
A48: 12. | B48: Salon kans. Seniorit | D48: 1259
B49: Viman Kari | C49: 674
B50: Mäkelä Seppo | C50: 585
A52: 13. | B52: Kuortaneen kans. Seniorit | D52: 1240
B53: Haapala Aimo | C53: 662
B54: Hakorinta Arto | C54: 578
A56: 14. | B56: Järvi-Pohjanmaan seniorit | D56: 1221
B57: Kangas Teuvo | C57: 611
B58: Juoperi Seppo | C58: 610
A60: 15. | B60: Nokian seniorit | D60: 1209
B61: Saarenpää Sirpa | C61: 542
B62: Lehtonen Jukka-Pekka | C62: 667
A64: 16. | B64: Tampereen kans. Seniorit | D64: 1199
B65: Kekki Jorma | C65: 553
B66: Saarinen Juhani | C66: 646
A68: 17. | B68: Hämeenlinnan kans. Seniorit | D68: 1196
B69: Ilva Raija | C69: 642
B70: Raatikainen Seija | C70: 554
A72: 18. | B72: Lammin seudun kans. Seniorit | D72: 1185
B73: Hirviniemi Pauli | C73: 585
B74: Kanerva Sirpa | C74: 600
A76: 19. | B76: Hyvinkään kans. Seniorit | D76: 1184
B77: Vaaralahti Taimi | C77: 566
B78: Romppanen Lea | C78: 618
A80: 20. | B80: Hämeenlinnan kans. Seniorit | D80: 1167
B81: Laurila Liisa | C81: 564
B82: Mäkinen Anne | C82: 603
A84: 21. | B84: Järvi-Pohjanmaan seniorit | D84: 1163
B85: Yli-Olli Pentti | C85: 553
B86: Juoperi Seppo | C86: 610
A88: 22. | B88: Raision seniorit | D88: 1119
B89: Virtanen Jaakko | C89: 662
B90: Laaksonen Klaus | C90: 457
A92: 23. | B92: Hämeenlinnan kans. Seniorit | D92: 1093
B93: Kivinen Irene | C93: 499
B94: Mäkiniemi Ulla | C94: 594
A96: 24. | B96: Salon kans. Seniorit | D96: 1085
B97: Micklin Tiina | C97: 514
B98: Valtamo Unto | C98: 571
A100: 25. | B100: Hämeenlinnan kans. Seniorit | D100: 1084
B101: Tuomenoja Markku | C101: 482
B102: Wallin Kimmo | C102: 602
A104: 26. | B104: Keski-Espoon seniorit | D104: 1065
B105: Malmi Markku | C105: 565
B106: Kjellman Tuula | C106: 500
A108: 27. | B108: Keski-Espoon seniorit | D108: 1064
B109: Guimaraes Fernando | C109: 529
B110: Messala Jaakko | C110: 535
A112: 28. | B112: Keski-Espoon seniorit | D112: 955
B113: Ahola Aila | C113: 501
B114: Askelinen Airi | C114: 454
A116: 29. | B116: Lammin seudun kans. Seniorit | D116: 913
B117: Lassila Soile | C117: 473
B118: Pöyhtäri Eliisa | C118: 440

Sheet Taulukko6
